[Event "British KO-ch Pre 2019"]
[Site "London"]
[Date "2019.11.30"]
[Round "3.8"]
[White "Kalaiyalahan, Akshaya"]
[Black "Pein, Jonathan"]
[Result "0-1"]
[ECO "A50"]
[WhiteElo "2154"]
[BlackElo "2151"]
[Annotator "NA"]
[PlyCount "100"]
[EventDate "2019.11.30"]
[EventType "k.o."]
[EventCountry "ENG"]
[SourceTitle "playchess.com"]
[Source "ChessBase"]
[SourceQuality "1"]
[TimeControl "600+5"]

1. Nf3 {[%emt 0:00:00]} Nf6 {[%emt 0:00:00]} 2. g3 {[%emt 0:00:00]} b6 {[%emt 0:00:00]} 3. Bg2 {[%emt 0:00:00]} Bb7 {[%emt 0:00:00]} 4. O-O {[%emt 0:00:02]} g6 {[%emt 0:00:01]} 5. d4 {[%emt 0:00:06]} Bg7 {[%emt 0:00:01]} 6. c4 {[%emt 0:00:01]} O-O {[%emt 0:00:02]} 7. Nc3 {[%emt 0:00:12]} Ne4 {[%emt 0:00:01]} 8. Nxe4 {[%emt 0:00:53]} Bxe4 {[%emt 0:00:01]} 9. b3 {[%emt 0:00:15]} c5 {[%emt 0:00:14]} 10. Bb2 {[%emt 0:00:01]} d5 {[%emt 0:00:15]} 11. Qc1 {[%emt 0:04:41]} cxd4 {[%emt 0:01:52]} 12. Nxd4 {[%emt 0:00:16]} Bxg2 {[%emt 0:00:18]} 13. Kxg2 {[%emt 0:00:02]} e5 {[%emt 0:00:33]} 14. Nf3 {[%emt 0:01:26]} d4 {[%emt 0:01:14]} 15. e3 {[%emt 0:01:07]} Nc6 {[%emt 0:01:18]} 16. exd4 {[%emt 0:00:12]} exd4 {[%emt 0:00:02]} 17. Qd2 {[%emt 0:00:15]} Qd6 {[%emt 0:00:12]} 18. Rfd1 {[%emt 0:00:30]} Rad8 {[%emt 0:00:12]} 19. a3 {[%emt 0:00:37]} Rfe8 {[%emt 0:00:23]} 20. Qd3 {[%emt 0:00:05]} Qc7 {[%emt 0:00:52]} 21. Re1 {[%emt 0:00:30]} Re7 {[%emt 0:00:53]} 22. Rxe7 {[%emt 0:00:09]} Qxe7 {[%emt 0:00:02]} 23. Re1 {[%emt 0:00:03]} Qd6 {[%emt 0:01:38]} 24. b4 {[%emt 0:00:21]} h6 {[%emt 0:00:37]} 25. Rd1 {[%emt 0:00:02]} Ne5 {[%emt 0:00:13]} 26. Nxe5 {[%emt 0:00:01]} Qxe5 {[%emt 0:00:06]} 27. Qf3 {[%emt 0:00:17]} Qc7 {[%emt 0:00:14]} 28. Qd3 {[%emt 0:00:01]} a5 {[%emt 0:00:17]} 29. Kg1 {[%emt 0:00:08]} axb4 {[%emt 0:00:06]} 30. axb4 {[%emt 0:00:01]} Rc8 {[%emt 0:00:16]} 31. Bxd4 {[%emt 0:00:10]} Qxc4 {[%emt 0:00:14]} 32. Qxc4 {[%emt 0:00:04]} Rxc4 {[%emt 0:00:01]} 33. Bxg7 {[%emt 0:00:02]} Kxg7 {[%emt 0:00:01]} 34. Rb1 {[%emt 0:00:04]} Kf6 {[%emt 0:00:05]} 35. Kf1 {[%emt 0:00:05]} Ke5 {[%emt 0:00:10]} 36. Ke2 {[%emt 0:00:01]} Ke4 {[%emt 0:00:04]} 37. Rb2 {[%emt 0:00:03]} b5 {[%emt 0:00:03]} 38. h4 {[%emt 0:00:01]} h5 {[%emt 0:00:05]} 39. Kd2 {[%emt 0:00:01]} Kf3 {[%emt 0:00:02]} 40. Ke1 {[%emt 0:00:02]} Re4+ {[%emt 0:00:05]} 41. Kd1 {[%emt 0:00:13]} Rc4 {[%emt 0:00:11]} 42. Ke1 {[%emt 0:00:18]} f6 43. Kd1 {[%emt 0:00:02]} g5 {[%emt 0:00:01]} 44. hxg5 {[%emt 0:00:01]} fxg5 {[%emt 0:00:00]} 45. Ke1 {[%emt 0:00:10]} h4 {[%emt 0:00:06]} 46. gxh4 {[%emt 0:00:02]} gxh4 {[%emt 0:00:01]} 47. Rb3+ {[%emt 0:00:01]} Kg2 {[%emt 0:00:05]} 48. Ke2 {[%emt 0:00:11]} Re4+ {[%emt 0:00:05]} 49. Kd3 {[%emt 0:00:09]} Rf4 {[%emt 0:00:03]} 50. Ke3 {[%emt 0:00:08]} Rf3+ {[%emt 0:00:02]} 0-1

[Event "British KO-ch Pre 2019"]
[Site "London"]
[Date "2019.11.30"]
[Round "4.1"]
[White "Horton, Andrew P"]
[Black "Harvey, Marcus R"]
[Result "0-1"]
[ECO "A14"]
[WhiteElo "2378"]
[BlackElo "2405"]
[Annotator "NA"]
[PlyCount "154"]
[EventDate "2019.11.30"]
[EventType "k.o."]
[EventCountry "ENG"]
[SourceTitle "playchess.com"]
[Source "ChessBase"]
[SourceQuality "1"]
[TimeControl "600+5"]

1. Nf3 {[%emt 0:00:00]} Nf6 {[%emt 0:00:00]} 2. c4 {[%emt 0:00:00]} b6 {[%emt 0:00:00]} 3. g3 {[%emt 0:00:00]} Bb7 {[%emt 0:00:00]} 4. Bg2 {[%emt 0:00:02]} e6 {[%emt 0:00:00]} 5. O-O {[%emt 0:00:02]} c5 {[%emt 0:00:00]} 6. b3 {[%emt 0:00:04]} Be7 {[%emt 0:00:02]} 7. Bb2 {[%emt 0:00:01]} O-O {[%emt 0:00:07]} 8. Nc3 {[%emt 0:00:32]} d5 {[%emt 0:00:01]} 9. e3 {[%emt 0:00:08]} Na6 {[%emt 0:01:28]} 10. Qe2 {[%emt 0:00:27]} dxc4 {[%emt 0:00:16]} 11. bxc4 {[%emt 0:00:15]} Nb4 {[%emt 0:00:01]} 12. Ne1 {[%emt 0:00:47]} Bxg2 13. Kxg2 {[%emt 0:00:01]} Qc8 {[%emt 0:00:25]} 14. a3 {[%emt 0:00:12]} Qb7+ {[%emt 0:00:03]} 15. Kg1 {[%emt 0:00:50]} Nc6 {[%emt 0:00:08]} 16. f4 {[%emt 0:00:04]} Rfd8 {[%emt 0:00:04]} 17. Rd1 {[%emt 0:00:03]} Na5 {[%emt 0:00:27]} 18. f5 {[%emt 0:00:17]} exf5 {[%emt 0:00:28]} 19. Rxf5 {[%emt 0:00:13]} Qd7 {[%emt 0:00:01]} 20. Rf4 {[%emt 0:00:17]} Qe6 {[%emt 0:00:23]} 21. d3 {[%emt 0:00:56]} Bd6 {[%emt 0:00:15]} 22. Rf1 {[%emt 0:00:20]} Re8 {[%emt 0:00:41]} 23. Ng2 {[%emt 0:00:06]} Nc6 {[%emt 0:00:17]} 24. Rde1 {[%emt 0:00:30]} Be5 {[%emt 0:00:16]} 25. Nf4 {[%emt 0:00:51]} Qg4 {[%emt 0:00:10]} 26. Qxg4 {[%emt 0:01:26]} Nxg4 {[%emt 0:00:01]} 27. Nfd5 {[%emt 0:00:04]} Rad8 {[%emt 0:01:40]} 28. Ba1 {[%emt 0:00:53]} Re6 {[%emt 0:01:52]} 29. Re2 {[%emt 0:02:28]} Nf6 {[%emt 0:00:31]} 30. Nxf6+ {[%emt 0:00:06]} Rxf6 {[%emt 0:00:09]} 31. Rd1 {[%emt 0:00:19]} Bxc3 {[%emt 0:00:02]} 32. Bxc3 {[%emt 0:00:01]} Rfd6 {[%emt 0:00:02]} 33. Red2 {[%emt 0:00:02]} f6 {[%emt 0:00:06]} 34. Kf2 {[%emt 0:00:01]} Ne5 {[%emt 0:00:06]} 35. Bxe5 {[%emt 0:00:04]} fxe5 {[%emt 0:00:01]} 36. Kf3 {[%emt 0:00:04]} e4+ {[%emt 0:01:01]} 37. Ke2 {[%emt 0:00:24]} Rh6 {[%emt 0:01:00]} 38. h4 {[%emt 0:00:02]} Rg6 {[%emt 0:00:11]} 39. dxe4 {[%emt 0:00:11]} Rxd2+ {[%emt 0:00:02]} 40. Rxd2 {[%emt 0:00:01]} Rxg3 {[%emt 0:00:02]} 41. Rd8+ {[%emt 0:00:02]} Kf7 {[%emt 0:00:00]} 42. Rd7+ {[%emt 0:00:02]} Kf6 {[%emt 0:00:08]} 43. Rxa7 {[%emt 0:00:02]} Rh3 {[%emt 0:00:01]} 44. e5+ Kxe5 {[%emt 0:00:07]} 45. Rxg7 {[%emt 0:00:10]} Rxh4 {[%emt 0:00:01]} 46. Kd3 {[%emt 0:00:03]} Kd6 {[%emt 0:00:24]} 47. a4 {[%emt 0:00:10]} Rh1 {[%emt 0:00:12]} 48. Rb7 {[%emt 0:00:07]} Kc6 {[%emt 0:00:03]} 49. Rf7 {[%emt 0:00:03]} h5 {[%emt 0:00:06]} 50. Rf6+ {[%emt 0:00:07]} Kc7 {[%emt 0:00:01]} 51. Ke4 {[%emt 0:00:02]} h4 {[%emt 0:00:01]} 52. Rh6 {[%emt 0:00:06]} h3 {[%emt 0:00:09]} 53. Rh7+ {[%emt 0:00:17]} Kc6 {[%emt 0:00:02]} 54. Rh6+ {[%emt 0:00:01]} Kb7 {[%emt 0:00:02]} 55. Rh7+ {[%emt 0:00:12]} Ka6 {[%emt 0:00:01]} 56. Kd5 {[%emt 0:00:00]} h2 {[%emt 0:00:23]} 57. Kc6 {[%emt 0:00:02]} Re1 {[%emt 0:00:02]} 58. Rxh2 {[%emt 0:00:04]} Rxe3 {[%emt 0:00:01]} 59. Rh8 {[%emt 0:00:07]} Re6+ {[%emt 0:00:20]} 60. Kd5 {[%emt 0:00:06]} Rg6 {[%emt 0:00:07]} 61. Ra8+ {[%emt 0:00:03]} Kb7 {[%emt 0:00:01]} 62. Rf8 {[%emt 0:00:06]} Rg4 {[%emt 0:00:05]} 63. Rf7+ {[%emt 0:00:04]} Ka6 {[%emt 0:00:01]} 64. Kc6 {[%emt 0:00:11]} Rxc4 {[%emt 0:00:29]} 65. Rf8 {[%emt 0:00:04]} Ka5 {[%emt 0:00:01]} 66. Ra8+ {[%emt 0:00:02]} Kb4 {[%emt 0:00:01]} 67. Kxb6 {[%emt 0:00:02]} Rh4 {[%emt 0:00:01]} 68. a5 {[%emt 0:00:06]} Rh6+ {[%emt 0:00:01]} 69. Kb7 {[%emt 0:00:02]} Kb5 {[%emt 0:00:04]} 70. a6 {[%emt 0:00:15]} Rb6+ {[%emt 0:00:13]} 71. Kc7 {[%emt 0:00:01]} Rxa6 {[%emt 0:00:01]} 72. Rb8+ {[%emt 0:00:08]} Kc4 {[%emt 0:00:05]} 73. Rb1 {[%emt 0:00:02]} Kd3 {[%emt 0:00:05]} 74. Rd1+ {[%emt 0:00:10]} Kc2 {[%emt 0:00:01]} 75. Rh1 {[%emt 0:00:03]} c4 {[%emt 0:00:01]} 76. Kb7 {[%emt 0:00:01]} Rg6 {[%emt 0:00:01]} 77. Rh2+ {[%emt 0:00:01]} Kb3 {[%emt 0:00:01]} 0-1

[Event "British KO-ch Pre 2019"]
[Site "London"]
[Date "2019.11.30"]
[Round "4.2"]
[White "Fernandez, Daniel Howard"]
[Black "Haria, Ravi"]
[Result "1-0"]
[ECO "A13"]
[WhiteElo "2444"]
[BlackElo "2451"]
[Annotator "ChessBase"]
[PlyCount "131"]
[EventDate "2019.11.30"]
[EventType "k.o."]
[EventCountry "ENG"]
[SourceTitle "playchess.com"]
[Source "ChessBase"]
[SourceQuality "1"]
[TimeControl "600+5"]

1. c4 {[%emt 0:00:15]} e6 {[%emt 0:00:00]} 2. g3 {[%emt 0:00:04]} d5 {[%emt 0:00:00]} 3. Bg2 {[%emt 0:00:03]} Nf6 {[%emt 0:00:14]} 4. Nf3 {[%emt 0:00:07]} d4 {[%emt 0:00:07]} 5. O-O {[%emt 0:00:10]} c5 {[%emt 0:00:01]} 6. b4 {[%emt 0:00:01]} a5 {[%emt 0:01:56]} 7. bxc5 {[%emt 0:00:21]} Bxc5 {[%emt 0:00:14]} 8. Ba3 {[%emt 0:00:15]} Qd6 {[%emt 0:00:33]} 9. Bxc5 {[%emt 0:00:28]} Qxc5 {[%emt 0:00:01]} 10. d3 {[%emt 0:00:02]} Nc6 {[%emt 0:00:38]} 11. Qa4 {[%emt 0:00:21]} O-O {[%emt 0:00:56]} 12. Nbd2 {[%emt 0:00:06]} e5 {[%emt 0:00:24]} 13. Qb5 {[%emt 0:00:10]} Qe7 {[%emt 0:00:15]} 14. Ne1 {[%emt 0:00:58]} a4 {[%emt 0:00:25]} 15. Nc2 {[%emt 0:00:40]} Ra5 {[%emt 0:00:40]} 16. Qb6 {[%emt 0:00:26]} Nd7 {[%emt 0:01:23]} 17. Qc7 {[%emt 0:00:14]} Nc5 {[%emt 0:01:37]} 18. Qxe7 {[%emt 0:00:04]} Nxe7 {[%emt 0:00:01]} 19. Rab1 {[%emt 0:00:24]} Bg4 {[%emt 0:00:48]} 20. Rfe1 {[%emt 0:00:10]} Ra7 {[%emt 0:00:38]} 21. h3 {[%emt 0:00:11]} Bd7 {[%emt 0:00:03]} 22. Rb6 {[%emt 0:02:08]} Bc6 {[%emt 0:00:07]} 23. Bxc6 {[%emt 0:00:35]} Nxc6 {[%emt 0:00:48]} 24. Reb1 {[%emt 0:00:13]} Rc8 {[%emt 0:00:00]} 25. R6b5 {[%emt 0:00:29]} Nb8 {[%emt 0:00:03]} 26. a3 Nbd7 {[%emt 0:00:06]} 27. Nb4 f6 {[%emt 0:00:05]} 28. Nd5 {[%emt 0:00:15]} Kf7 {[%emt 0:00:03]} 29. Kg2 {[%emt 0:00:07]} Rc6 {[%emt 0:00:03]} 30. g4 {[%emt 0:00:40]} g6 {[%emt 0:00:02]} 31. Nb6 {[%emt 0:00:53]} Nxb6 {[%emt 0:00:06]} 32. Rxb6 {[%emt 0:00:01]} Ra6 {[%emt 0:00:13]} 33. Rxa6 {[%emt 0:00:08]} Rxa6 {[%emt 0:00:04]} 34. Ne4 {[%emt 0:00:11]} Nb3 {[%emt 0:00:06]} 35. e3 {[%emt 0:00:13]} f5 {[%emt 0:00:04]} 36. Ng5+ {[%emt 0:00:04]} Kg7 {[%emt 0:00:08]} 37. exd4 {[%emt 0:00:11]} exd4 {[%emt 0:00:02]} 38. Re1 {[%emt 0:00:01]} Nc5 {[%emt 0:00:07]} 39. Nf3 {[%emt 0:00:26]} fxg4 40. hxg4 {[%emt 0:00:05]} Nxd3 {[%emt 0:00:08]} 41. Re7+ {[%emt 0:00:02]} Kf6 {[%emt 0:00:02]} 42. Rxh7 {[%emt 0:00:23]} Nf4+ {[%emt 0:00:01]} 43. Kh2 {[%emt 0:00:11]} Rd6 {[%emt 0:00:12]} 44. Rxb7 {[%emt 0:00:23]} d3 {[%emt 0:00:01]} 45. Nd2 {[%emt 0:00:02]} Rd4 {[%emt 0:00:09]} 46. Kg3 {[%emt 0:00:12]} g5 {[%emt 0:00:09]} 47. Rb6+ {[%emt 0:00:03]} Kg7 {[%emt 0:00:02]} 48. Rb5 {[%emt 0:00:04]} Kg6 {[%emt 0:00:03]} 49. Kf3 {[%emt 0:00:03]} Ne6 {[%emt 0:00:04]} 50. Ra5 {[%emt 0:00:07]} Rf4+ {[%emt 0:00:07]} 51. Ke3 {[%emt 0:00:03]} Rxg4 {[%emt 0:00:06]} 52. Kxd3 {[%emt 0:00:06]} Rd4+ {[%emt 0:00:06]} 53. Ke3 {[%emt 0:00:11]} Rd7 {[%emt 0:00:06]} 54. Ne4 {[%emt 0:00:11]} Rb7 {[%emt 0:00:03]} 55. Rb5 {[%emt 0:00:07]} Rh7 {[%emt 0:00:04]} 56. Rb6 {[%emt 0:00:03]} Kf5 {[%emt 0:00:10]} 57. Rxe6 {[%emt 0:00:03]} Rh3+ {[%emt 0:00:03]} 58. f3 {[%emt 0:00:02]} g4 {[%emt 0:00:07]} 59. Rf6+ {[%emt 0:00:06]} Ke5 {[%emt 0:00:00]} 60. c5 {[%emt 0:00:06]} gxf3 {[%emt 0:00:06]} 61. Rxf3 {[%emt 0:00:08]} Rh4 {[%emt 0:00:01]} 62. Nf2 {[%emt 0:00:14]} Kd5 {[%emt 0:00:03]} 63. Nd3 {[%emt 0:00:02]} Rh1 {[%emt 0:00:05]} 64. Rf4 {[%emt 0:00:04]} Rh3+ {[%emt 0:00:05]} 65. Kd2 {[%emt 0:00:01]} Rh2+ {[%emt 0:00:12]} 66. Kc3 {[%emt 0:00:02]} 1-0

[Event "British KO-ch Pre 2019"]
[Site "London"]
[Date "2019.11.30"]
[Round "4.3"]
[White "Wadsworth, Matthew J"]
[Black "Claridge-Hansen, William"]
[Result "1-0"]
[ECO "B20"]
[WhiteElo "2401"]
[BlackElo "2290"]
[Annotator "NA"]
[PlyCount "97"]
[EventDate "2019.11.30"]
[EventType "k.o."]
[EventCountry "ENG"]
[SourceTitle "playchess.com"]
[Source "ChessBase"]
[SourceQuality "1"]
[TimeControl "600+5"]

1. g3 {[%emt 0:00:00]} c5 {[%emt 0:00:00]} 2. Bg2 {[%emt 0:00:02]} g6 {[%emt 0:00:00]} 3. e4 {[%emt 0:00:08]} Bg7 {[%emt 0:00:04]} 4. Ne2 {[%emt 0:00:02]} Nc6 {[%emt 0:00:06]} 5. c3 {[%emt 0:00:05]} e5 {[%emt 0:00:25]} 6. d3 {[%emt 0:00:13]} Nge7 {[%emt 0:00:09]} 7. Be3 {[%emt 0:00:13]} d6 {[%emt 0:00:01]} 8. Nd2 {[%emt 0:00:09]} O-O {[%emt 0:00:11]} 9. O-O {[%emt 0:00:09]} b6 {[%emt 0:01:03]} 10. f4 {[%emt 0:00:05]} d5 {[%emt 0:00:05]} 11. Nf3 {[%emt 0:01:21]} dxe4 {[%emt 0:00:46]} 12. dxe4 {[%emt 0:00:20]} Ba6 {[%emt 0:00:04]} 13. Kf2 {[%emt 0:01:25]} Bd3 {[%emt 0:01:34]} 14. Ne1 {[%emt 0:00:40]} Bc4 {[%emt 0:00:38]} 15. Qxd8 Raxd8 {[%emt 0:00:05]} 16. f5 {[%emt 0:01:51]} gxf5 17. exf5 {[%emt 0:00:01]} Bd5 {[%emt 0:01:41]} 18. g4 {[%emt 0:00:19]} e4 {[%emt 0:00:29]} 19. Nf4 {[%emt 0:00:30]} Ne5 {[%emt 0:00:02]} 20. h3 {[%emt 0:00:10]} Bc4 {[%emt 0:00:18]} 21. Rg1 {[%emt 0:00:38]} Bd3 {[%emt 0:01:22]} 22. Nexd3 {[%emt 0:01:03]} exd3 {[%emt 0:00:01]} 23. Be4 {[%emt 0:00:17]} Nc4 {[%emt 0:00:59]} 24. g5 {[%emt 0:00:32]} Be5 {[%emt 0:00:05]} 25. Nxd3 {[%emt 0:00:05]} Rfe8 {[%emt 0:00:23]} 26. Nxe5 {[%emt 0:00:31]} Nxe5 {[%emt 0:00:01]} 27. Rad1 {[%emt 0:00:11]} Nc4 {[%emt 0:00:27]} 28. Bc1 {[%emt 0:00:07]} Nd6 {[%emt 0:00:13]} 29. Rxd6 {[%emt 0:00:49]} Rxd6 {[%emt 0:00:00]} 30. Bf4 {[%emt 0:00:03]} Rd7 {[%emt 0:00:21]} 31. Kf3 {[%emt 0:00:19]} Nd5 {[%emt 0:00:06]} 32. Bc1 {[%emt 0:00:09]} Re5 {[%emt 0:00:37]} 33. f6 {[%emt 0:00:09]} Nc7 {[%emt 0:00:17]} 34. Bf4 {[%emt 0:00:03]} Re6 {[%emt 0:00:10]} 35. Bf5 {[%emt 0:00:04]} c4 {[%emt 0:00:05]} 36. Bxc7 {[%emt 0:00:04]} Rxc7 {[%emt 0:00:04]} 37. Bxe6 {[%emt 0:00:01]} fxe6 {[%emt 0:00:01]} 38. Rd1 {[%emt 0:00:02]} Kf7 {[%emt 0:00:06]} 39. Rd8 {[%emt 0:00:07]} Kg6 {[%emt 0:00:09]} 40. h4 {[%emt 0:00:03]} e5 {[%emt 0:00:04]} 41. Rg8+ {[%emt 0:00:06]} Kf5 {[%emt 0:00:04]} 42. Rg7 {[%emt 0:00:04]} e4+ {[%emt 0:00:01]} 43. Ke2 {[%emt 0:00:02]} Rc8 {[%emt 0:00:09]} 44. f7 {[%emt 0:00:01]} Rf8 {[%emt 0:00:04]} 45. Rxh7 {[%emt 0:00:02]} Kg6 {[%emt 0:00:00]} 46. Rh6+ {[%emt 0:00:03]} Kf5 {[%emt 0:00:08]} 47. Rf6+ {[%emt 0:00:04]} Ke5 {[%emt 0:00:07]} 48. Rf1 {[%emt 0:00:02]} Ke6 {[%emt 0:00:08]} 49. g6 {[%emt 0:00:01]} 1-0

[Event "British KO-ch Pre 2019"]
[Site "London"]
[Date "2019.11.30"]
[Round "4.4"]
[White "Golding, Alex"]
[Black "Clarke, Brandon G I"]
[Result "0-1"]
[ECO "B36"]
[WhiteElo "2306"]
[BlackElo "2431"]
[Annotator "NA"]
[PlyCount "78"]
[EventDate "2019.11.30"]
[EventType "k.o."]
[EventCountry "ENG"]
[SourceTitle "playchess.com"]
[Source "ChessBase"]
[SourceQuality "1"]
[TimeControl "600+5"]

1. e4 {[%emt 0:00:00]} c5 {[%emt 0:00:00]} 2. c4 {[%emt 0:00:01]} d6 {[%emt 0:00:03]} 3. Ne2 {[%emt 0:00:04]} Nf6 {[%emt 0:01:23]} 4. Nbc3 {[%emt 0:00:01]} Nc6 {[%emt 0:00:27]} 5. d4 {[%emt 0:00:16]} cxd4 6. Nxd4 {[%emt 0:00:01]} g6 {[%emt 0:00:13]} 7. Be2 {[%emt 0:00:08]} Nxd4 8. Qxd4 {[%emt 0:00:05]} Bg7 {[%emt 0:00:11]} 9. Be3 {[%emt 0:00:20]} O-O {[%emt 0:00:02]} 10. Qd2 {[%emt 0:00:02]} a5 {[%emt 0:00:19]} 11. O-O {[%emt 0:00:04]} a4 {[%emt 0:00:12]} 12. b4 {[%emt 0:00:23]} axb3 {[%emt 0:00:37]} 13. axb3 {[%emt 0:00:02]} Rxa1 {[%emt 0:00:02]} 14. Rxa1 {[%emt 0:00:18]} Nxe4 {[%emt 0:00:01]} 15. Nxe4 {[%emt 0:00:29]} Bxa1 {[%emt 0:00:02]} 16. Bf3 {[%emt 0:01:00]} Bg7 {[%emt 0:00:18]} 17. Qb4 {[%emt 0:00:06]} Qc7 {[%emt 0:01:05]} 18. Nc3 {[%emt 0:00:16]} Be6 {[%emt 0:00:20]} 19. Nb5 {[%emt 0:00:17]} Qd7 {[%emt 0:00:03]} 20. h4 {[%emt 0:00:17]} Bg4 {[%emt 0:00:37]} 21. Bd5 {[%emt 0:01:16]} e6 {[%emt 0:01:28]} 22. Be4 {[%emt 0:00:02]} d5 {[%emt 0:00:02]} 23. cxd5 {[%emt 0:00:28]} exd5 {[%emt 0:00:19]} 24. Bd3 {[%emt 0:00:01]} Ra8 {[%emt 0:00:46]} 25. Bd4 {[%emt 0:00:21]} Rc8 {[%emt 0:00:50]} 26. Nc3 {[%emt 0:00:39]} Be6 {[%emt 0:01:13]} 27. h5 {[%emt 0:00:20]} Qc7 {[%emt 0:00:46]} 28. Bxg7 {[%emt 0:00:34]} Kxg7 {[%emt 0:00:01]} 29. Qd4+ {[%emt 0:00:06]} f6 {[%emt 0:00:10]} 30. Nxd5 {[%emt 0:02:00]} Qe5 {[%emt 0:00:03]} 31. Nf4 {[%emt 0:00:11]} Rc1+ {[%emt 0:00:19]} 32. Kh2 {[%emt 0:00:21]} Bf7 {[%emt 0:00:16]} 33. h6+ {[%emt 0:00:46]} Kxh6 {[%emt 0:00:08]} 34. Qb4 {[%emt 0:00:03]} Kg7 {[%emt 0:00:14]} 35. g3 {[%emt 0:00:39]} Qe1 {[%emt 0:00:02]} 36. Qxb7 {[%emt 0:00:07]} Qxf2+ {[%emt 0:00:12]} 37. Kh3 {[%emt 0:00:07]} Rg1 {[%emt 0:00:13]} 38. Ne2 {[%emt 0:00:49]} Qf1+ {[%emt 0:00:01]} 39. Kg4 {[%emt 0:00:05]} f5+ {[%emt 0:00:10]} 0-1

[Event "British KO-ch Pre 2019"]
[Site "London"]
[Date "2019.11.30"]
[Round "4.5"]
[White "Merry, Alan B"]
[Black "Willow, Jonah B"]
[Result "1-0"]
[ECO "B36"]
[WhiteElo "2426"]
[BlackElo "2345"]
[Annotator "NA"]
[PlyCount "57"]
[EventDate "2019.11.30"]
[EventType "k.o."]
[EventCountry "ENG"]
[SourceTitle "playchess.com"]
[Source "ChessBase"]
[SourceQuality "1"]
[TimeControl "600+5"]

1. c4 {[%emt 0:00:00]} c5 {[%emt 0:00:00]} 2. Nf3 {[%emt 0:00:00]} Nc6 {[%emt 0:00:00]} 3. d4 {[%emt 0:00:00]} cxd4 {[%emt 0:00:00]} 4. Nxd4 {[%emt 0:00:00]} g6 {[%emt 0:00:00]} 5. e4 {[%emt 0:00:06]} Nf6 {[%emt 0:00:02]} 6. Nc3 {[%emt 0:00:01]} d6 {[%emt 0:00:01]} 7. Be2 {[%emt 0:00:04]} Nxd4 {[%emt 0:00:01]} 8. Qxd4 {[%emt 0:00:01]} Bg7 {[%emt 0:00:01]} 9. Bg5 {[%emt 0:00:03]} O-O {[%emt 0:00:04]} 10. Qe3 {[%emt 0:00:03]} a5 {[%emt 0:00:12]} 11. O-O {[%emt 0:00:03]} a4 {[%emt 0:00:03]} 12. Rad1 {[%emt 0:01:27]} Qa5 {[%emt 0:00:05]} 13. Bxf6 {[%emt 0:00:22]} Bxf6 {[%emt 0:00:25]} 14. Nd5 {[%emt 0:00:02]} Bxb2 {[%emt 0:00:34]} 15. Nxe7+ {[%emt 0:00:10]} Kg7 {[%emt 0:00:02]} 16. Nxc8 {[%emt 0:00:35]} Raxc8 {[%emt 0:00:04]} 17. Rxd6 {[%emt 0:00:03]} Rc7 {[%emt 0:00:31]} 18. Rfd1 {[%emt 0:00:15]} Re8 {[%emt 0:00:27]} 19. R6d5 {[%emt 0:01:47]} Qa6 {[%emt 0:00:51]} 20. f4 {[%emt 0:00:51]} Rce7 {[%emt 0:00:26]} 21. e5 {[%emt 0:00:13]} Qc6 {[%emt 0:01:36]} 22. a3 {[%emt 0:01:16]} f6 {[%emt 0:00:50]} 23. Rd6 {[%emt 0:01:22]} Qc7 {[%emt 0:01:27]} 24. R6d2 {[%emt 0:01:20]} Bxe5 {[%emt 0:02:14]} 25. fxe5 {[%emt 0:00:05]} Rxe5 {[%emt 0:00:02]} 26. Rd7+ {[%emt 0:00:25]} Kg8 {[%emt 0:00:10]} 27. Rxc7 {[%emt 0:00:39]} Rxe3 {[%emt 0:00:01]} 28. Bf3 {[%emt 0:00:06]} Rxa3 {[%emt 0:00:08]} 29. Rdd7 {[%emt 0:00:10]} 1-0

[Event "British KO-ch Pre 2019"]
[Site "London"]
[Date "2019.11.30"]
[Round "4.6"]
[White "Taylor, Adam C"]
[Black "McPhillips, Joseph"]
[Result "1-0"]
[ECO "E60"]
[WhiteElo "2371"]
[BlackElo "2434"]
[Annotator "NA"]
[PlyCount "137"]
[EventDate "2019.11.30"]
[EventType "k.o."]
[EventCountry "ENG"]
[SourceTitle "playchess.com"]
[Source "ChessBase"]
[SourceQuality "1"]
[TimeControl "600+5"]

1. Nf3 {[%emt 0:00:00]} Nf6 {[%emt 0:00:00]} 2. c4 {[%emt 0:00:00]} g6 {[%emt 0:00:00]} 3. b3 {[%emt 0:00:00]} d6 {[%emt 0:00:05]} 4. d4 {[%emt 0:00:01]} Bg7 {[%emt 0:00:01]} 5. Bb2 {[%emt 0:00:01]} O-O {[%emt 0:00:02]} 6. g3 {[%emt 0:00:02]} Nc6 {[%emt 0:00:10]} 7. Bg2 {[%emt 0:00:04]} Bf5 {[%emt 0:01:50]} 8. O-O {[%emt 0:00:06]} e5 {[%emt 0:00:58]} 9. dxe5 dxe5 {[%emt 0:00:02]} 10. Nxe5 {[%emt 0:00:59]} Nb4 {[%emt 0:02:22]} 11. Nc3 {[%emt 0:02:39]} Qe7 {[%emt 0:00:20]} 12. Nd3 {[%emt 0:00:05]} Rad8 {[%emt 0:00:19]} 13. Nd5 Nfxd5 {[%emt 0:00:09]} 14. Bxg7 {[%emt 0:00:45]} Kxg7 {[%emt 0:00:30]} 15. cxd5 {[%emt 0:00:01]} Nxd5 {[%emt 0:00:24]} 16. Qc2 {[%emt 0:00:23]} Kg8 {[%emt 0:00:18]} 17. Rac1 {[%emt 0:01:43]} Bxd3 {[%emt 0:00:13]} 18. exd3 {[%emt 0:00:45]} c6 {[%emt 0:00:01]} 19. Rfe1 {[%emt 0:00:03]} Qf6 {[%emt 0:00:08]} 20. Qc5 {[%emt 0:00:32]} Nb6 {[%emt 0:00:12]} 21. Qe7 {[%emt 0:00:11]} Qxe7 {[%emt 0:00:19]} 22. Rxe7 {[%emt 0:00:02]} Rd7 {[%emt 0:00:01]} 23. Rxd7 {[%emt 0:00:40]} Nxd7 {[%emt 0:00:01]} 24. d4 {[%emt 0:00:05]} Nf6 {[%emt 0:00:09]} 25. Re1 {[%emt 0:00:24]} Rd8 {[%emt 0:00:34]} 26. Re7 Rxd4 {[%emt 0:00:09]} 27. Rxb7 {[%emt 0:00:20]} Rd1+ {[%emt 0:00:02]} 28. Bf1 {[%emt 0:00:01]} Ne4 {[%emt 0:00:01]} 29. Kg2 {[%emt 0:00:16]} Rd2 {[%emt 0:00:09]} 30. Rxa7 {[%emt 0:00:32]} Rxf2+ {[%emt 0:00:02]} 31. Kg1 {[%emt 0:00:01]} Rb2 {[%emt 0:00:02]} 32. Bc4 {[%emt 0:00:07]} Ng5 {[%emt 0:00:03]} 33. h4 {[%emt 0:00:05]} Nf3+ {[%emt 0:00:02]} 34. Kf1 {[%emt 0:00:09]} Nd2+ {[%emt 0:00:25]} 35. Ke1 {[%emt 0:00:31]} Nxc4 {[%emt 0:00:03]} 36. bxc4 {[%emt 0:00:03]} Rb4 {[%emt 0:00:02]} 37. a4 {[%emt 0:00:35]} Rxc4 {[%emt 0:00:03]} 38. a5 {[%emt 0:00:01]} Rc2 {[%emt 0:00:17]} 39. a6 {[%emt 0:00:19]} Ra2 {[%emt 0:00:03]} 40. Kd1 {[%emt 0:00:01]} Kg7 {[%emt 0:00:01]} 41. Kc1 {[%emt 0:00:01]} Ra3 {[%emt 0:00:06]} 42. Kb2 {[%emt 0:00:14]} Ra5 {[%emt 0:01:10]} 43. Kb3 {[%emt 0:00:08]} c5 {[%emt 0:00:03]} 44. Kc4 {[%emt 0:00:06]} h6 {[%emt 0:00:05]} 45. Kd5 {[%emt 0:00:04]} g5 {[%emt 0:00:09]} 46. Kc6 {[%emt 0:00:17]} g4 {[%emt 0:00:36]} 47. Kb6 {[%emt 0:00:08]} Ra3 {[%emt 0:00:01]} 48. Rc7 {[%emt 0:00:07]} Rb3+ {[%emt 0:00:09]} 49. Kc6 {[%emt 0:00:12]} Rxg3 {[%emt 0:00:06]} 50. a7 {[%emt 0:00:08]} Ra3 {[%emt 0:00:06]} 51. Kb7 {[%emt 0:00:04]} Rb3+ {[%emt 0:00:18]} 52. Kc8 {[%emt 0:00:01]} Ra3 {[%emt 0:00:04]} 53. Kb8 {[%emt 0:00:01]} g3 {[%emt 0:00:01]} 54. Rxc5 {[%emt 0:00:13]} f5 {[%emt 0:00:01]} 55. Rc3 {[%emt 0:00:06]} Rxa7 {[%emt 0:01:02]} 56. Rxg3+ {[%emt 0:00:02]} Kf6 {[%emt 0:00:01]} 57. Kxa7 {[%emt 0:00:01]} f4 {[%emt 0:00:03]} 58. Rg8 {[%emt 0:00:09]} Kf5 {[%emt 0:00:02]} 59. Kb6 {[%emt 0:00:09]} f3 {[%emt 0:00:11]} 60. Kc5 {[%emt 0:00:02]} h5 {[%emt 0:00:04]} 61. Kd5 {[%emt 0:00:03]} Kf4 {[%emt 0:00:01]} 62. Ke6 {[%emt 0:00:05]} f2 {[%emt 0:00:05]} 63. Rg5 {[%emt 0:00:06]} f1=Q {[%emt 0:00:09]} 64. Rf5+ {[%emt 0:00:01]} Kg4 {[%emt 0:00:01]} 65. Rxf1 {[%emt 0:00:02]} Kxh4 {[%emt 0:00:01]} 66. Rg1 {[%emt 0:00:15]} Kh3 {[%emt 0:00:02]} 67. Kf5 {[%emt 0:00:01]} Kh2 {[%emt 0:00:02]} 68. Rg5 {[%emt 0:00:03]} h4 {[%emt 0:00:01]} 69. Kg4 {[%emt 0:00:05]} 1-0